fUSD/lending_fUSD_20240104
["ID","MTS","AMOUNT","RATE_DAILY","PERIOD"]
[310197463,1704397862861,-155.39,0.00033591,2]
[310197464,1704397862870,-160.73437862,0.00033598,2]
[310197465,1704397862880,-154.1,0.000336,2]
[310197466,1704397862891,-154.1,0.000336,2]
[310197467,1704397862901,-154.1,0.000336,2]
[310197468,1704397862911,-154.1,0.000336,2]
[310197469,1704397862922,-154.1,0.000336,2]
[310197470,1704397862934,-154.1,0.000336,2]
[310197471,1704397862944,-154.0,0.00033609,5]
[310197472,1704397862955,-188.44,0.00033627,2]
[310197473,1704397862964,-1820.04691551,0.00033635,5]
[310197474,1704397862974,-150.0,0.00033697,2]
[310197475,1704397862984,-398.45933714,0.00033698,2]
[310197476,1704397862994,-536.41564565,0.00033698,2]
[310197477,1704397863004,-500.0,0.00033698,2]
[310197478,1704397863015,-500.0,0.00033698,2]
[310197479,1704397863026,-500.0,0.00033698,2]
[310197480,1704397863035,-500.0,0.00033698,2]
[310197481,1704397863045,-500.0,0.00033698,2]
[310197482,1704397863055,-500.0,0.00033698,2]
[310197483,1704397863066,-500.0,0.00033698,2]
[310197484,1704397863075,-500.0,0.00033698,2]
[310197485,1704397863085,-542.7395276,0.00033698,2]
[310197486,1704397863095,-500.0,0.00033698,2]
[310197487,1704397863105,-500.0,0.00033698,2]
[310197488,1704397863115,-507.64685224,0.00033698,2]
[310197489,1704397863124,-512.23701793,0.00033698,2]
[310197490,1704397863134,-500.0,0.00033698,2]
[310197491,1704397863143,-500.0,0.00033698,2]
[310197492,1704397863153,-500.0,0.00033698,2]
[310197493,1704397863163,-254.02571673,0.00033698,2]
[310197494,1704397863172,-500.0,0.00033698,2]
[310197495,1704397863184,-1807.31,0.00033698,2]
[310197496,1704397863194,-500.0,0.00033698,2]
[310197497,1704397863204,-432.34242603,0.00033698,2]
[310197498,1704397863214,-500.0,0.00033698,2]
[310197499,1704397863224,-500.0,0.00033698,2]
[310197500,1704397863237,-500.0,0.00033698,2]
[310197501,1704397863247,-500.0,0.00033698,2]
[310197502,1704397863257,-500.0,0.00033698,2]
[310197503,1704397863267,-500.0,0.00033698,2]
[310197504,1704397863277,-500.0,0.00033698,2]
[310197505,1704397863288,-500.0,0.00033698,2]
[310197506,1704397863298,-504.42570815,0.00033698,2]
[310197507,1704397863308,-500.0,0.00033698,2]
[310197508,1704397863318,-500.0,0.00033698,2]
[310197509,1704397863328,-500.0,0.00033698,2]
[310197510,1704397863338,-500.0,0.00033698,2]
[310197511,1704397863348,-500.0,0.00033698,2]
[310197512,1704397863358,-500.0,0.00033698,2]
[310197513,1704397863368,-500.0,0.00033698,2]
[310197514,1704397863378,-500.0,0.00033698,2]
[310197515,1704397863389,-500.0,0.00033698,2]
[310197516,1704397863399,-500.0,0.00033698,2]
[310197517,1704397863409,-500.0,0.00033698,2]
[310197518,1704397863419,-500.0,0.00033698,2]
[310197519,1704397863430,-500.0,0.00033698,2]
[310197520,1704397863440,-500.0,0.00033698,2]
[310197521,1704397863450,-500.0,0.00033698,2]
[310197522,1704397863459,-500.0,0.00033698,2]
[310197523,1704397863470,-500.0,0.00033698,2]
[310197524,1704397863479,-500.0,0.00033698,2]
[310197525,1704397863489,-500.0,0.00033698,2]
[310197526,1704397863500,-500.0,0.00033698,2]
[310197527,1704397863510,-500.0,0.00033698,2]
[310197528,1704397863520,-500.0,0.00033698,2]
[310197529,1704397863530,-500.0,0.00033698,2]
[310197530,1704397863540,-500.0,0.00033698,2]
[310197531,1704397863550,-500.0,0.00033698,2]
[310197532,1704397863559,-500.0,0.00033698,2]
[310197533,1704397863570,-555.67411534,0.00033698,2]
[310197534,1704397863580,-500.0,0.00033698,2]
[310197535,1704397863589,-500.0,0.00033698,2]
[310197536,1704397863599,-500.0,0.00033698,2]
[310197537,1704397863609,-500.0,0.00033698,2]
[310197538,1704397863619,-500.0,0.00033698,2]
[310197539,1704397863629,-500.0,0.00033698,2]
[310197540,1704397863640,-500.0,0.00033698,2]
[310197541,1704397863650,-500.0,0.00033698,2]
[310197542,1704397863659,-500.0,0.00033698,2]
[310197543,1704397863669,-500.0,0.00033698,2]
[310197544,1704397863680,-500.0,0.00033698,2]
[310197545,1704397863690,-500.0,0.00033698,2]
[310197546,1704397863699,-500.0,0.00033698,2]
[310197547,1704397863709,-500.0,0.00033698,2]
[310197548,1704397863720,-500.0,0.00033698,2]
[310197549,1704397863734,-500.0,0.00033698,2]
[310197550,1704397863744,-500.0,0.00033698,2]
[310197551,1704397863754,-500.0,0.00033698,2]
[310197552,1704397863763,-500.0,0.00033698,2]
[310197553,1704397863776,-483.2947881,0.00033698,2]
[310197554,1704397863787,-478.58767317,0.00033698,2]
[310197555,1704397863797,-500.0,0.00033698,2]
[310197556,1704397863807,-500.0,0.00033698,2]
[310197557,1704397863817,-500.0,0.00033698,2]
[310197558,1704397863830,-500.0,0.00033698,2]
[310197559,1704397863839,-500.0,0.00033698,2]
[310197560,1704397863850,-500.0,0.00033698,2]
[310197561,1704397863859,-500.0,0.00033698,2]
[310197562,1704397863869,-500.0,0.00033698,2]
[310197563,1704397863879,-500.0,0.00033698,2]
[310197564,1704397863888,-188.16653391,0.00033698,2]
[310197565,1704397863898,-500.0,0.00033698,2]
[310197566,1704397863908,-500.0,0.00033698,2]
[310197567,1704397863917,-510.49272607,0.00033698,2]
[310197568,1704397863928,-500.0,0.00033698,2]
[310197569,1704397863938,-500.0,0.00033698,2]
[310197570,1704397863949,-500.0,0.00033698,2]
[310197571,1704397863958,-500.0,0.00033698,2]
[310197572,1704397863968,-500.0,0.00033698,2]
[310197573,1704397863977,-500.0,0.00033698,2]
[310197574,1704397863986,-575.41189314,0.00033698,2]
[310197575,1704397863996,-500.0,0.00033698,2]
[310197576,1704397864006,-500.0,0.00033698,2]
[310197577,1704397864016,-500.0,0.00033698,2]
[310197578,1704397864026,-500.0,0.00033698,2]
[310197579,1704397864036,-500.0,0.00033698,2]
[310197580,1704397864046,-472.01159575,0.00033698,2]
[310197581,1704397864055,-469.84762051,0.00033698,2]
[310197582,1704397864065,-448.00559807,0.00033698,2]
[310197583,1704397864075,-500.0,0.00033698,2]
[310197584,1704397864084,-500.0,0.00033698,2]
[310197585,1704397864093,-500.0,0.00033698,2]
[310197586,1704397864174,-500.0,0.00033698,2]
[310197587,1704397864183,-500.0,0.00033698,2]
[310197588,1704397864194,-500.0,0.00033698,2]
[310197589,1704397864203,-500.0,0.00033698,2]
[310197590,1704397864213,-500.0,0.00033698,2]
[310197591,1704397864222,-500.0,0.00033698,2]
[310197592,1704397864232,-500.0,0.00033698,2]
[310197593,1704397864241,-500.0,0.00033698,2]
[310197594,1704397864250,-865.01,0.00033698,2]
[310197595,1704397864259,-500.0,0.00033698,2]
[310197596,1704397864268,-500.0,0.00033698,2]
[310197597,1704397864278,-500.0,0.00033698,2]
[310197598,1704397864287,-500.0,0.00033698,2]
[310197599,1704397864297,-500.0,0.00033698,2]
[310197600,1704397864309,-500.0,0.00033698,2]
[310197601,1704397864318,-583.33,0.00033698,2]
[310197602,1704397864327,-500.0,0.00033698,2]
[310197603,1704397864337,-500.0,0.00033698,2]
[310197604,1704397864346,-500.0,0.00033698,2]
[310197605,1704397864355,-500.0,0.00033698,2]
[310197606,1704397864365,-500.0,0.00033698,2]
[310197607,1704397864374,-500.0,0.00033698,2]
[310197608,1704397864384,-1284.32,0.00033698,2]
[310197609,1704397864394,-579.64,0.00033698,2]
[310197610,1704397864403,-500.0,0.00033698,2]
[310197611,1704397864413,-515.83539903,0.00033698,2]
[310197612,1704397864423,-500.0,0.00033698,2]
[310197613,1704397864437,-500.0,0.00033698,2]
[310197614,1704397864446,-500.0,0.00033698,2]
[310197615,1704397864456,-500.0,0.00033698,2]
[310197616,1704397864465,-1058.09,0.00033698,2]
[310197617,1704397864475,-500.0,0.00033698,2]
[310197618,1704397864485,-500.0,0.00033698,2]
[310197619,1704397864495,-500.0,0.00033698,2]
[310197620,1704397864504,-500.0,0.00033698,2]
[310197621,1704397864514,-500.0,0.00033698,2]
[310197622,1704397864523,-500.0,0.00033698,2]
[310197623,1704397864532,-543.63,0.00033698,2]
[310197624,1704397864546,-500.0,0.00033698,2]
[310197625,1704397864555,-500.0,0.00033698,2]
[310197626,1704397864564,-500.0,0.00033698,2]
[310197627,1704397864573,-500.0,0.00033698,2]
[310197628,1704397864583,-1700.97,0.00033698,2]
[310197629,1704397864593,-500.0,0.00033698,2]
[310197630,1704397864602,-500.0,0.00033698,2]
[310197631,1704397864612,-500.0,0.00033698,2]
[310197632,1704397864621,-863.75,0.00033698,2]
[310197633,1704397864631,-731.04,0.00033698,2]
[310197634,1704397864640,-500.0,0.00033698,2]
[310197635,1704397864650,-500.0,0.00033698,2]
[310197636,1704397864660,-500.0,0.00033698,2]
[310197637,1704397864670,-564.89000968,0.00033698,2]
[310197638,1704397864682,-580.4,0.00033698,2]
[310197639,1704397864691,-500.0,0.00033698,2]
[310197640,1704397864700,-500.0,0.00033698,2]
[310197641,1704397864709,-500.0,0.00033698,2]
[310197642,1704397864720,-500.0,0.00033698,2]
[310197643,1704397864730,-500.0,0.00033698,2]
[310197644,1704397864742,-500.0,0.00033698,2]
[310197645,1704397864754,-500.0,0.00033698,2]
[310197646,1704397864764,-500.0,0.00033698,2]
[310197647,1704397864774,-249.42917673,0.00033698,2]
[310197648,1704397864785,-500.0,0.00033698,2]
[310197649,1704397864795,-500.0,0.00033698,2]
[310197650,1704397864804,-500.0,0.00033698,2]
[310197651,1704397864814,-500.0,0.00033698,2]
[310197652,1704397864823,-500.0,0.00033698,2]
[310197653,1704397864832,-6526.71,0.00033698,2]
[310197654,1704397864841,-500.0,0.00033698,2]
[310197655,1704397864850,-2294.31,0.00033698,2]
[310197656,1704397864860,-515.14547526,0.00033698,2]
[310197657,1704397864869,-500.0,0.00033698,2]
[310197658,1704397864880,-722.55,0.00033698,2]
[310197659,1704397864889,-500.0,0.00033698,2]
[310197660,1704397864898,-500.0,0.00033698,2]
[310197661,1704397864909,-500.0,0.00033698,2]
[310197662,1704397864918,-500.0,0.00033698,2]
[310197663,1704397864930,-500.0,0.00033698,2]
[310197664,1704397864939,-1691.72,0.00033698,2]
[310197665,1704397864949,-921.24,0.00033698,2]
[310197666,1704397864959,-500.0,0.00033698,2]
[310197667,1704397864968,-589.58,0.00033698,2]
[310197668,1704397864978,-1289.87,0.00033698,2]
[310197669,1704397864988,-500.0,0.00033698,2]
[310197670,1704397864999,-532.380584,0.00033698,2]
[310197671,1704397865009,-500.0,0.00033698,2]
[310197672,1704397865018,-500.0,0.00033698,2]
[310197673,1704397865028,-500.0,0.00033698,2]
[310197674,1704397865038,-500.0,0.00033698,2]
[310197675,1704397865049,-391.40889248,0.00033698,2]
[310197676,1704397865058,-3756.74,0.00033698,2]
[310197677,1704397865069,-1426.77,0.00033698,2]
[310197678,1704397865079,-500.0,0.00033698,2]
[310197679,1704397865089,-500.0,0.00033698,2]
[310197680,1704397865099,-500.0,0.00033698,2]
[310197681,1704397865109,-500.0,0.00033698,2]
[310197682,1704397865119,-500.0,0.00033698,2]
[310197683,1704397865129,-1080.46,0.00033698,2]
[310197684,1704397865139,-2739.45,0.00033698,2]
[310197685,1704397865148,-500.0,0.00033698,2]
[310197686,1704397865158,-500.0,0.00033698,2]
[310197687,1704397865168,-500.0,0.00033698,2]
[310197688,1704397865179,-500.0,0.00033698,2]
[310197689,1704397865189,-500.0,0.00033698,2]
[310197690,1704397865199,-500.0,0.00033698,2]
[310197691,1704397865209,-500.0,0.00033698,2]
[310197692,1704397865219,-968.76,0.00033698,2]
[310197693,1704397865229,-1542.0,0.00033698,2]
[310197694,1704397865239,-586.36221199,0.00033698,2]
[310197695,1704397865248,-500.0,0.00033698,2]
[310197696,1704397865258,-1230.11,0.00033698,2]
[310197697,1704397865268,-500.0,0.00033698,2]
[310197698,1704397865278,-500.0,0.00033698,2]
[310197699,1704397865287,-500.0,0.00033698,2]
[310197700,1704397865298,-500.0,0.00033698,2]
[310197701,1704397865307,-500.0,0.00033698,2]
[310197702,1704397865317,-500.0,0.00033698,2]
[310197703,1704397865326,-300.0,0.00033698,2]
[310197704,1704397865336,-500.0,0.00033698,2]
[310197705,1704397865345,-500.0,0.00033698,2]
[310197706,1704397865354,-938.31,0.00033698,2]
[310197707,1704397865364,-600.84,0.00033698,2]
[310197708,1704397865375,-500.0,0.00033698,2]
[310197709,1704397865384,-500.0,0.00033698,2]
[310197710,1704397865394,-500.0,0.00033698,2]
[310197711,1704397865404,-500.0,0.00033698,2]
[310197712,1704397865414,-1230.77,0.00033698,2]
[310197713,1704397865423,-500.0,0.00033698,2]
[310197714,1704397865434,-500.0,0.00033698,2]
[310197715,1704397865444,-210.3157555,0.00033698,2]
[310197716,1704397865453,-500.0,0.00033698,2]
[310197717,1704397865464,-529.04,0.00033698,2]
[310197718,1704397865474,-500.0,0.00033698,2]
[310197719,1704397865484,-514.29,0.00033698,2]
[310197720,1704397865494,-923.67,0.00033698,2]
[310197721,1704397865504,-500.0,0.00033698,2]
[310197722,1704397865514,-1091.29,0.00033698,2]
[310197723,1704397865523,-500.0,0.00033698,2]
[310197724,1704397865534,-500.0,0.00033698,2]
[310197725,1704397865543,-500.0,0.00033698,2]
[310197726,1704397865554,-500.0,0.00033698,2]
[310197727,1704397865564,-500.0,0.00033698,2]
[310197728,1704397865573,-989.1,0.00033698,2]
[310197729,1704397865583,-500.0,0.00033698,2]
[310197730,1704397865593,-602.25,0.00033698,2]
[310197731,1704397865603,-500.0,0.00033698,2]
[310197732,1704397865613,-3309.5,0.00033698,2]
[310197733,1704397865623,-500.0,0.00033698,2]
[310197734,1704397865633,-532.96,0.00033698,2]
[310197735,1704397865642,-500.0,0.00033698,2]
[310197736,1704397865652,-500.0,0.00033698,2]
[310197737,1704397865661,-500.0,0.00033698,2]
[310197738,1704397865671,-500.0,0.00033698,2]
[310197739,1704397865682,-500.0,0.00033698,2]
[310197740,1704397865691,-500.0,0.00033698,2]
[310197741,1704397865701,-555.60324594,0.00033698,2]
[310197742,1704397865711,-895.61,0.00033698,2]
[310197743,1704397865720,-765.49,0.00033698,2]
[310197744,1704397865730,-500.0,0.00033698,2]
[310197745,1704397865740,-923.89,0.00033698,2]
[310197746,1704397865749,-500.0,0.00033698,2]
[310197747,1704397865759,-500.0,0.00033698,2]
[310197748,1704397865769,-417.39796612,0.00033698,2]
[310197749,1704397865779,-500.0,0.00033698,2]
[310197750,1704397865789,-500.0,0.00033698,2]
[310197751,1704397865798,-500.0,0.00033698,2]
[310197752,1704397865808,-500.0,0.00033698,2]
[310197753,1704397865818,-500.0,0.00033698,2]
[310197754,1704397865828,-500.0,0.00033698,2]
[310197755,1704397865837,-500.0,0.00033698,2]
[310197756,1704397865847,-587.04,0.00033698,2]
[310197757,1704397865857,-1030.36,0.00033698,2]
[310197758,1704397865866,-500.0,0.00033698,2]
[310197759,1704397865875,-500.0,0.00033698,2]
[310197760,1704397865885,-500.0,0.00033698,2]
[310197761,1704397865897,-627.71,0.00033698,2]
[310197762,1704397865907,-510.93197195,0.00033698,2]
[310197763,1704397865916,-500.0,0.00033698,2]
[310197764,1704397865926,-789.2,0.00033698,2]
[310197765,1704397865935,-4224.76,0.00033698,2]
[310197766,1704397865945,-500.0,0.00033698,2]
[310197767,1704397865954,-500.0,0.00033698,2]
[310197768,1704397865965,-500.0,0.00033698,2]
[310197769,1704397865975,-5231.08,0.00033698,2]
[310197770,1704397865985,-500.0,0.00033698,2]
[310197771,1704397865995,-441.02497873,0.00033698,2]
[310197772,1704397866005,-524.26909467,0.00033698,2]
[310197773,1704397866015,-500.0,0.00033698,2]
[310197774,1704397866025,-1469.18,0.00033698,2]
[310197775,1704397866035,-500.0,0.00033698,2]
[310197776,1704397866045,-500.0,0.00033698,2]
[310197777,1704397866055,-500.0,0.00033698,2]
[310197778,1704397866065,-807.05,0.00033698,2]
[310197779,1704397866075,-500.0,0.00033698,2]
[310197780,1704397866085,-500.0,0.00033698,2]
[310197781,1704397866095,-196.56730628,0.00033698,2]
[310197782,1704397866104,-637.19,0.00033698,2]
[310197783,1704397866113,-500.0,0.00033698,2]
[310197784,1704397866123,-522.53171695,0.00033698,2]
[310197785,1704397866132,-500.0,0.00033698,2]
[310197786,1704397866142,-500.0,0.00033698,2]
[310197787,1704397866151,-565.04,0.00033698,2]
[310197788,1704397866161,-500.0,0.00033698,2]
[310197789,1704397866170,-853.71,0.00033698,2]
[310197790,1704397866181,-500.0,0.00033698,2]
[310197791,1704397866190,-572.16,0.00033698,2]
[310197792,1704397866200,-500.0,0.00033698,2]
[310197793,1704397866209,-1481.18,0.00033698,2]
[310197794,1704397866219,-1368.13,0.00033698,2]
[310197795,1704397866228,-500.0,0.00033698,2]
[310197796,1704397866238,-561.22,0.00033698,2]
[310197797,1704397866248,-500.0,0.00033698,2]
[310197798,1704397866257,-500.0,0.00033698,2]
[310197799,1704397866268,-500.0,0.00033698,2]
[310197800,1704397866278,-500.0,0.00033698,2]
[310197801,1704397866288,-500.0,0.00033698,2]
[310197802,1704397866298,-1034.34,0.00033698,2]
[310197803,1704397866310,-2410.15,0.00033698,2]
[310197804,1704397866320,-500.0,0.00033698,2]
[310197805,1704397866330,-500.0,0.00033698,2]
[310197806,1704397866340,-373.47668279,0.00033698,2]
[310197807,1704397866350,-500.0,0.00033698,2]
[310197808,1704397866359,-462.90786219,0.00033698,2]
[310197809,1704397866370,-500.0,0.00033698,2]
[310197810,1704397866379,-500.0,0.00033698,2]
[310197811,1704397866389,-500.0,0.00033698,2]
[310197812,1704397866398,-500.0,0.00033698,2]
[310197813,1704397866409,-500.0,0.00033698,2]
[310197814,1704397866419,-500.0,0.00033698,2]
[310197815,1704397866430,-500.0,0.00033698,2]
[310197816,1704397866440,-600.41,0.00033698,2]
[310197817,1704397866450,-500.0,0.00033698,2]
[310197818,1704397866461,-500.92411296,0.00033698,2]
[310197819,1704397866471,-500.0,0.00033698,2]
[310197820,1704397866480,-500.0,0.00033698,2]
[310197821,1704397866490,-500.0,0.00033698,2]
[310197822,1704397866499,-500.0,0.00033698,2]
[310197823,1704397866509,-773.88,0.00033698,2]
[310197824,1704397866519,-500.0,0.00033698,2]
[310197825,1704397866529,-500.0,0.00033698,2]
[310197826,1704397866539,-500.0,0.00033698,2]
[310197827,1704397866548,-154.17,0.00033698,2]
[310197828,1704397866558,-500.0,0.00033698,2]
[310197829,1704397866567,-500.0,0.00033698,2]
[310197830,1704397866577,-876.65,0.00033698,2]
[310197831,1704397866586,-500.0,0.00033698,2]
[310197832,1704397866596,-1745.78,0.00033698,2]
[310197833,1704397866605,-529.83,0.00033698,2]
[310197834,1704397866615,-1330.86,0.00033698,2]
[310197835,1704397866624,-3939.72,0.00033698,2]
[310197836,1704397866634,-500.0,0.00033698,2]
[310197837,1704397866644,-500.0,0.00033698,2]
[310197838,1704397866654,-750.41,0.00033698,2]
[310197839,1704397866664,-168.32587477,0.00033698,2]
[310197840,1704397866674,-515.84990964,0.00033698,2]
[310197841,1704397866685,-1262.44,0.00033698,2]
[310197842,1704397866694,-500.0,0.00033698,2]
[310197843,1704397866704,-500.0,0.00033698,2]
[310197844,1704397866713,-872.52,0.00033698,2]
[310197845,1704397866723,-805.05,0.00033698,2]
[310197846,1704397866733,-500.0,0.00033698,2]
[310197847,1704397866742,-500.0,0.00033698,2]
[310197848,1704397866752,-978.86,0.00033698,2]
[310197849,1704397866762,-500.0,0.00033698,2]
[310197850,1704397866772,-500.0,0.00033698,2]
[310197851,1704397866782,-500.0,0.00033698,2]
[310197852,1704397866791,-500.0,0.00033698,2]
[310197853,1704397866801,-500.0,0.00033698,2]
[310197854,1704397866811,-500.0,0.00033698,2]
[310197855,1704397866820,-500.0,0.00033698,2]
[310197856,1704397866830,-1031.78,0.00033698,2]
[310197857,1704397866840,-256.94579787,0.00033698,2]
[310197858,1704397866850,-500.0,0.00033698,2]
[310197859,1704397866860,-517.14069901,0.00033698,2]
[310197860,1704397866870,-500.0,0.00033698,2]
[310197861,1704397866881,-258.28519802,0.00033698,2]
[310197862,1704397866891,-500.0,0.00033698,2]
[310197863,1704397866901,-500.0,0.00033698,2]
[310197864,1704397866912,-500.0,0.00033698,2]
[310197865,1704397866921,-470.0,0.00033698,2]
[310197866,1704397866933,-1359.87,0.00033698,2]
[310197867,1704397866946,-598.11,0.00033698,2]
[310197868,1704397866956,-500.0,0.00033698,2]
[310197869,1704397866967,-500.0,0.00033698,2]
[310197870,1704397866986,-500.0,0.00033698,2]
[310197871,1704397866995,-500.0,0.00033698,2]
[310197872,1704397867019,-645.35,0.00033698,2]
[310197873,1704397867033,-500.0,0.00033698,2]
[310197874,1704397867053,-500.0,0.00033698,2]
[310197875,1704397867065,-637.82,0.00033698,2]
[310197876,1704397867082,-500.0,0.00033698,2]
[310197877,1704397867096,-974.78,0.00033698,2]
[310197878,1704397867112,-500.0,0.00033698,2]
[310197879,1704397867122,-1353.52,0.00033698,2]
[310197880,1704397867133,-1044.66,0.00033698,2]
[310197881,1704397867143,-500.0,0.00033698,2]
[310197882,1704397867153,-500.0,0.00033698,2]
[310197883,1704397867174,-500.0,0.00033698,2]
[310197884,1704397867185,-500.0,0.00033698,2]
[310197885,1704397867196,-500.0,0.00033698,2]
[310197886,1704397867206,-500.0,0.00033698,2]
[310197887,1704397867216,-500.0,0.00033698,2]
[310197888,1704397867226,-500.0,0.00033698,2]
[310197889,1704397867239,-500.0,0.00033698,2]
[310197890,1704397867249,-2163.78,0.00033698,2]
[310197891,1704397867260,-500.0,0.00033698,2]
[310197892,1704397867271,-500.0,0.00033698,2]
[310197893,1704397867282,-500.0,0.00033698,2]
[310197894,1704397867293,-622.8,0.00033698,2]
[310197895,1704397867303,-500.0,0.00033698,2]
[310197896,1704397867314,-500.0,0.00033698,2]
[310197897,1704397867324,-1453.91,0.00033698,2]
[310197898,1704397867335,-1854.45,0.00033698,2]
[310197899,1704397867345,-610.32,0.00033698,2]
[310197900,1704397867355,-500.0,0.00033698,2]
[310197901,1704397867365,-374.11,0.00033698,2]
[310197902,1704397867375,-500.0,0.00033698,2]
[310197903,1704397867386,-500.0,0.00033698,2]
[310197904,1704397867396,-500.0,0.00033698,2]
[310197905,1704397867407,-500.0,0.00033698,2]
[310197906,1704397867418,-500.0,0.00033698,2]
[310197907,1704397867431,-500.0,0.00033698,2]
[310197908,1704397867443,-524.82,0.00033698,2]
[310197909,1704397867454,-2024.49,0.00033698,2]
[310197910,1704397867480,-500.0,0.00033698,2]
[310197911,1704397867505,-500.0,0.00033698,2]
[310197912,1704397867522,-853.3,0.00033698,2]
[310197913,1704397867544,-500.0,0.00033698,2]
[310197914,1704397867558,-1000.0,0.000337,7]
[310197915,1704397867578,-201.95416176,0.0003375,4]
[310197916,1704397867591,-814.12,0.00033771,2]
[310197917,1704397867608,-155.39,0.00033785,2]
[310197918,1704397867635,-150.0,0.00033791,2]
[310197919,1704397867654,-293.32,0.00033791,2]
[310197920,1704397867680,-293.32,0.00033791,2]
[310197921,1704397867696,-150.0,0.00033791,2]
[310197922,1704397867715,-293.32,0.00033791,2]
[310197923,1704397867735,-150.0,0.00033791,2]
[310197924,1704397867749,-530.49,0.00033819,2]
[310197925,1704397867759,-153.84,0.00033848,2]
[310197926,1704397867769,-1146.95,0.00033869,2]
[310197927,1704397867779,-287.07812278,0.00033872,22]
[310197928,1704397867789,-598.17,0.00033899,2]
[310197929,1704397867799,-1100.0,0.000339,12]
[310197930,1704397867810,-188.44,0.00033936,2]
[310197931,1704397867821,-390.68668871,0.00033962,2]
[310197932,1704397867832,-152.51373577,0.00033969,2]
[310197933,1704397867842,-300.0,0.00033971,2]
[310197934,1704397867853,-500.0,0.00033972,2]
[310197935,1704397867863,-500.0,0.00033972,2]
[310197936,1704397867875,-500.0,0.00033972,2]
[310197937,1704397867885,-568.94606469,0.00033972,2]
[310197938,1704397867896,-500.0,0.00033972,2]
[310197939,1704397867906,-500.0,0.00033972,2]
[310197940,1704397867917,-500.0,0.00033972,2]
[310197941,1704397867927,-500.0,0.00033972,2]
[310197942,1704397867938,-500.0,0.00033972,2]
[310197943,1704397867947,-500.0,0.00033972,2]
[310197944,1704397867958,-500.0,0.00033972,2]
[310197945,1704397867968,-500.0,0.00033972,2]
[310197946,1704397867978,-500.0,0.00033972,2]
[310197947,1704397867988,-500.0,0.00033972,2]
[310197948,1704397867998,-1807.31,0.00033972,2]
[310197949,1704397868009,-500.0,0.00033972,2]
[310197950,1704397868019,-500.0,0.00033972,2]
[310197951,1704397868029,-500.0,0.00033972,2]
[310197952,1704397868039,-500.0,0.00033972,2]
[310197953,1704397868049,-500.0,0.00033972,2]
[310197954,1704397868058,-500.0,0.00033972,2]
[310197955,1704397868068,-500.0,0.00033972,2]
[310197956,1704397868078,-500.0,0.00033972,2]
[310197957,1704397868088,-500.0,0.00033972,2]
[310197958,1704397868099,-500.0,0.00033972,2]
[310197959,1704397868109,-500.0,0.00033972,2]
[310197960,1704397868119,-500.0,0.00033972,2]
[310197961,1704397868129,-153.36425596,0.00033972,2]
[310197962,1704397868139,-500.0,0.00033972,2]